bitfinex/quotes_SOLUSD_20251116
["timestamp","ask_amount","ask_price","bid_price","bid_amount"]
[1763256040422,104.2,139.1,139.07,6.92281588]
[1763256040423,0.7,139.1,139.07,6.92281588]
[1763256040624,7.62281588,139.12,139.07,6.92281588]
[1763256040825,6.92281588,139.12,139.07,6.92281588]
[1763256041132,0.7,139.11,139.07,6.92281588]
[1763256041323,0.7,139.11,139.08,7.19010641]
[1763256041524,0.7,139.11,139.08,14.11292229]
[1763256042422,0.7,139.11,139.08,7.19010641]
[1763256043426,6.92281588,139.1,139.06,14.11361532]
[1763256043743,14.81152426,139.11,139.07,6.92281588]
[1763256044038,0.68,139.1,139.07,6.92281588]
[1763256044853,0.68,139.1,139.07,2.79566064]
[1763256045418,0.68,139.1,139.08,7.19010641]
[1763256045724,0.68,139.1,139.07,2.79566064]
[1763256045932,0.68,139.1,139.07,9.98603996]
[1763256046131,26.12686064,139.1,139.05,9.98703216]
[1763256046643,0.68,139.09,139.05,9.98703216]
[1763256047230,2.79566064,139.11,139.07,2.79566064]
[1763256047429,0.68,139.1,139.08,7.19010641]
[1763256047648,22.6512,139.13,139.08,10.67576705]
[1763256047649,33.31457893,139.13,139.08,10.67576705]
[1763256047825,0.68,139.12,139.08,10.67576705]
[1763256048246,0.68,139.12,139.09,2.79566064]
[1763256048541,0.68,139.12,139.1,2.79566064]
[1763256049254,0.68,139.12,139.09,2.79566064]
[1763256050324,0.68,139.12,139.09,9.98486346]
[1763256050932,0.68,139.12,139.09,7.18920282]
[1763256051137,0.68,139.12,139.09,9.98486346]
[1763256051340,7.86809505,139.12,139.09,9.98486346]
[1763256051531,10.66375569,139.12,139.08,9.98558778]
[1763256051734,0.68,139.11,139.08,9.98558778]
[1763256054249,0.68,139.11,139.08,27.96085381]
[1763256055049,0.68,139.11,139.08,32.08611676]
[1763256055551,0.68,139.11,139.08,14.11085073]
[1763256056134,14.7895354,139.11,139.07,7.19037803]
[1763256056648,0.68,139.11,139.08,6.92092359]
[1763256058549,0.68,139.11,139.09,7.18958947]
[1763256060453,7.86769964,139.13,139.09,14.80051306]
[1763256060664,0.68,139.16,139.12,6.92092359]
[1763256060832,6.92092359,139.18,139.13,6.92092359]
[1763256061037,0.68,139.2,139.16,6.92092359]
[1763256061368,0.68,139.2,139.14,10.47882769]
[1763256061526,7.60092359,139.2,139.15,6.92092359]
[1763256061733,0.68000001,139.21,139.18,6.92092359]
[1763256062541,0.68000001,139.21,139.18,14.1055647]
[1763256062852,0.68000001,139.21,139.18,6.92092359]
[1763256063440,0.68000001,139.21,139.18,14.10569387]
[1763256064043,1e-08,139.21,139.2,6.92092359]
[1763256064241,1e-08,139.21,139.2,7.61092359]
[1763256064655,1e-08,139.21,139.2,14.79483163]
[1763256066155,1e-08,139.21,139.2,31.50458291]
[1763256066333,0.2,139.26,139.23,32.44002769]
[1763256066539,0.2,139.26,139.25,6.92092359]
[1763256066735,0.2,139.26,139.25,23.89107982]
[1763256066940,0.2,139.26,139.25,24.58107982]
[1763256067748,0.2,139.26,139.25,17.66015623]
[1763256067955,0.2,139.26,139.25,24.58107982]
[1763256068648,0.2,139.35,139.26,0.69]
[1763256068841,0.68,139.34,139.32,6.92092359]
[1763256069450,0.68,139.34,139.31,6.92092359]
[1763256070460,6.92092359,139.32,139.26,6.92092359]
[1763256070644,36.75078217,139.31,139.26,6.92092359]
[1763256071058,0.68,139.3,139.26,6.92092359]
[1763256071236,0.68,139.3,139.27,6.92092359]
[1763256072163,0.68,139.33,139.29,6.92092359]
[1763256072465,0.68,139.32,139.28,6.92092359]
[1763256073081,9.24,139.32,139.26,7.180759]
[1763256073376,9.24,139.32,139.28,6.92092359]
[1763256073545,0.66,139.31,139.28,6.92092359]
[1763256074256,6.92092359,139.29,139.23,6.92092359]
[1763256074447,6.92092359,139.28,139.23,6.92092359]
[1763256074755,6.92092359,139.27,139.22,29.57212359]
[1763256075147,0.66,139.26,139.22,29.57212359]
[1763256075347,0.66,139.26,139.19,18.34882769]
[1763256075348,0.66,139.26,139.23,6.92092359]
[1763256075543,29.57212359,139.29,139.24,6.92092359]
[1763256075767,6.92092359,139.26,139.13,1.99999999]
[1763256075957,6.92092359,139.25,139.2,6.92092359]
[1763256076160,7.58092359,139.25,139.2,6.92092359]
[1763256076380,0.66,139.24,139.2,6.92092359]
[1763256076561,6.92092359,139.27,139.22,6.92092359]
[1763256076875,8.56,139.27,139.24,4.33843067]
[1763256077045,0.66,139.26,139.24,4.33843067]
[1763256077372,8.56,139.27,139.24,4.33843067]
[1763256077548,0.66,139.26,139.24,4.33843067]
[1763256078144,0.66,139.26,139.24,11.52022823]
[1763256078668,0.66,139.28,139.25,4.33843067]
[1763256078881,9.22,139.3,139.27,4.33843067]
[1763256079075,0.66,139.3,139.28,4.33843067]
[1763256081958,0.66,139.3,139.27,7.180285]
[1763256082276,0.66,139.3,139.28,4.33843067]
[1763256082488,7.83885894,139.3,139.24,7.18152002]
[1763256082784,4.33843067,139.29,139.24,11.51995069]
[1763256083090,4.33843067,139.29,139.18,106.28438778]
[1763256083091,4.33843067,139.26,139.22,11.52126629]
[1763256083592,0.66,139.25,139.22,11.52126629]
[1763256084351,0.66,139.26,139.23,4.33843067]
[1763256085380,0.66,139.26,139.22,4.33843067]
[1763256085578,4.33843067,139.24,139.2,11.52206691]
[1763256086260,0.66,139.23,139.21,4.33843067]
[1763256088376,0.66,139.23,139.21,11.52154255]
[1763256088776,0.66,139.23,139.18,4.33843067]
[1763256088777,13.55843067,139.23,139.18,4.33843067]
[1763256088980,4.33843067,139.22,139.18,4.33843067]
[1763256089297,4.33843067,139.2,139.15,4.33843067]
[1763256089470,12.89843067,139.19,139.14,4.33843067]
[1763256089874,0.66,139.18,139.14,11.52498638]
[1763256092599,0.66,139.18,139.14,4.33843067]
[1763256092775,0.66,139.18,139.14,11.5253808]
[1763256092967,0.66,139.18,139.15,4.33843067]
[1763256093172,9.22,139.18,139.15,4.33843067]
[1763256093470,9.22,139.18,139.16,4.33843067]
[1763256093671,8.56,139.18,139.17,4.33843067]
[1763256094102,0.66,139.21,139.17,5.01843067]
[1763256094310,8.56,139.22,139.19,4.33843067]
[1763256094474,8.56,139.22,139.2,4.33843067]
[1763256094978,8.56,139.22,139.21,11.52182266]
[1763256095801,8.56,139.22,139.21,4.33843067]
[1763256095990,9.22,139.22,139.18,7.86457885]
[1763256096189,8.56,139.22,139.2,4.33843067]
[1763256097596,9.22,139.22,139.2,4.33843067]
[1763256098178,9.22,139.22,139.19,12.20279801]
[1763256099222,9.22,139.22,139.2,4.33843067]
[1763256099515,9.22,139.22,139.2,11.52199422]
[1763256105518,8.56,139.22,139.21,4.33843067]
[1763256105688,0.66,139.26,139.2,25.14333366]
[1763256105884,0.66,139.26,139.22,4.33843067]
[1763256106088,9.22,139.26,139.22,4.33843067]
[1763256106701,8.56,139.26,139.2,25.14333366]
[1763256106921,0.66,139.25,139.22,4.33843067]
[1763256107704,0.66,139.25,139.22,11.52120832]
[1763256108815,15.74112058,139.26,139.22,11.52120832]
[1763256109124,16.40112058,139.26,139.22,11.52120832]
[1763256111205,103.77630816,139.27,139.25,4.33843067]
[1763256111513,103.77630816,139.27,139.24,4.33843067]
[1763256111717,104.43630816,139.27,139.24,4.33843067]
[1763256112315,103.77630816,139.27,139.24,4.33843067]
[1763256112522,29.83058487,139.29,139.25,4.33843067]
[1763256112725,12.17742277,139.3,139.26,4.33843067]
[1763256112916,2.44442485,139.3,139.26,1.78442485]
[1763256113101,0.66,139.3,139.26,1.78442485]
[1763256113303,0.66,139.3,139.27,7.18029726]
[1763256114031,0.66,139.3,139.27,8.96472211]
[1763256114607,0.66,139.3,139.27,7.18029726]
[1763256114912,0.66,139.3,139.27,1.78442485]
[1763256115795,7.83875236,139.3,139.27,1.78442485]
[1763256116006,7.83875236,139.3,139.26,8.96499789]
[1763256116824,8.96317721,139.3,139.26,1.78442485]
[1763256117007,1.78442485,139.28,139.24,8.96606641]
[1763256117207,1.78442485,139.28,139.24,7.18164156]
[1763256117410,2.44442485,139.27,139.24,7.18164156]
[1763256117622,2.44442485,139.27,139.23,7.18212051]
[1763256117794,0.66,139.26,139.23,7.18212051]
[1763256119018,8.96469485,139.28,139.23,8.96654536]
[1763256119401,1.78442485,139.26,139.22,10.32442485]
[1763256119708,1.78442485,139.26,139.22,8.54]
[1763256119920,0.66,139.25,139.22,15.72281704]
[1763256120130,0.66,139.25,139.21,8.96751295]
[1763256120429,0.66,139.25,139.21,9.66751295]
[1763256120621,0.66,139.25,139.22,1.78442485]
[1763256120944,1.78442485,139.24,139.19,15.72441453]
[1763256121121,8.96557233,139.26,139.21,1.78442485]
[1763256121438,16.38062004,139.27,139.24,1.78442485]
[1763256121818,16.38062004,139.27,139.23,1.78442485]
[1763256122026,2.44442485,139.26,139.21,1.78442485]
[1763256122209,1.78442485,139.25,139.21,1.78442485]
[1763256122406,2.44442485,139.25,139.21,1.78442485]
[1763256122602,0.66,139.24,139.21,1.78442485]
[1763256122826,0.66,139.24,139.2,8.96809464]
[1763256123003,0.66,139.24,139.2,1.78442485]
[1763256123210,0.66,139.24,139.21,1.78442485]
[1763256124416,8.96540092,139.26,139.22,8.96730087]
[1763256124609,9.62540092,139.26,139.22,8.96730087]
[1763256124816,15.72053975,139.27,139.23,2.48442485]
[1763256125005,16.38053975,139.27,139.23,1.78442485]
[1763256125501,0.66,139.26,139.23,1.78442485]
[1763256126115,0.66,139.26,139.22,9.66730087]
[1763256126509,8.54,139.27,139.23,1.78442485]
[1763256126703,13.37639583,139.29,139.24,1.78442485]
[1763256126908,9.62392152,139.29,139.24,1.78442485]
[1763256127225,0.66,139.28,139.24,2.48442485]
[1763256127625,0.66,139.28,139.24,1.78442485]
[1763256128034,0.66,139.28,139.24,2.48442485]
[1763256128329,2.44442485,139.28,139.24,1.78442485]
[1763256128710,0.66,139.27,139.24,8.96598537]
[1763256130316,9.62472919,139.27,139.22,8.96685955]
[1763256130512,9.62472919,139.27,139.23,1.78442485]
[1763256130710,0.66,139.26,139.23,2.48442485]
[1763256131446,0.66,139.26,139.22,1.78442485]
[1763256131447,2.44442485,139.26,139.22,1.78442485]
[1763256131634,0.66,139.26,139.22,2.48442485]
[1763256131950,1.78442485,139.23,139.16,8.97039783]
[1763256132126,1.78442485,139.2,139.16,8.97039783]
[1763256132326,8.96806641,139.21,139.16,8.97039783]
[1763256132527,0.66,139.2,139.14,1.78442485]
[1763256132719,1.78442485,139.17,139.13,10.32442485]
[1763256133064,4.34511915,139.15,139.11,4.34511915]
[1763256133339,4.34511915,139.14,139.11,22.6512]
[1763256133710,4.34511915,139.14,139.09,4.34511915]
[1763256133711,5.00511915,139.13,139.09,7.18958947]
[1763256133911,5.00511915,139.13,139.09,12.23470862]
[1763256134131,0.66,139.12,139.09,11.53470862]
[1763256134338,5.00511915,139.12,139.08,0.1]
[1763256134517,12.19330315,139.12,139.08,0.1]
[1763256134714,5.00511915,139.11,139.08,0.1]
[1763256134944,5.00511915,139.11,139.08,7.28999531]
[1763256135127,0.66,139.11,139.08,7.28999531]
[1763256135437,5.00511915,139.16,139.1,4.34511915]
[1763256135634,5.00511915,139.16,139.11,4.34511915]
[1763256136015,0.66,139.15,139.11,5.04511915]
[1763256136416,0.66,139.15,139.12,7.1880391]
[1763256137348,6.91820795,139.14,139.09,22.6512]
[1763256137519,7.84665196,139.15,139.08,7.01820795]
[1763256137520,6.91820795,139.12,139.08,7.01820795]
[1763256137715,6.91820795,139.11,139.08,0.1]
[1763256137947,9.78882769,139.13,139.08,0.1]
[1763256138154,6.91820795,139.11,139.08,0.1]
[1763256138626,7.57820795,139.11,139.08,0.1]
[1763256139229,6.91820795,139.12,139.08,0.8]
[1763256139529,7.57820795,139.12,139.08,0.8]
[1763256140040,15.47820795,139.14,139.1,6.91820795]
[1763256140220,6.91820795,139.15,139.11,0.7]
[1763256140523,7.57820795,139.15,139.12,7.1880391]
[1763256141522,6.91820795,139.17,139.13,7.61820795]
[1763256142128,7.57820795,139.17,139.13,7.61820795]
[1763256142536,14.76374008,139.17,139.13,7.88743498]
[1763256143417,7.57820795,139.17,139.13,14.80564293]
[1763256144245,14.76367693,139.17,139.13,14.80564293]
[1763256145740,6.91820795,139.15,139.11,6.91820795]
[1763256145945,6.91820795,139.15,139.08,0.1]
[1763256145946,6.91820795,139.13,139.08,7.01820795]
[1763256146120,9.78882769,139.15,139.08,7.01820795]
[1763256146121,6.91820795,139.12,139.08,0.8]
[1763256146326,0.66,139.14,139.08,0.8]
[1763256146327,6.91820795,139.13,139.09,7.18958244]
[1763256146529,6.91820795,139.13,139.09,14.80779039]
[1763256147060,7.57820795,139.13,139.09,14.80779039]
[1763256147228,0.66,139.13,139.09,14.80779039]
[1763256148758,7.57820795,139.13,139.09,7.88958244]
[1763256149052,14.76580397,139.13,139.09,7.88958244]
[1763256149844,0.66,139.15,139.1,0.7]
[1763256150149,6.91820795,139.14,139.1,0.7]
[1763256150449,6.91820795,139.14,139.09,14.10779039]
[1763256150661,6.91820795,139.12,139.08,7.29008088]
[1763256151027,7.57820795,139.12,139.08,7.99008088]
[1763256151528,7.57820795,139.11,139.08,0.1]
[1763256151731,7.57820795,139.11,139.08,7.29006462]
[1763256152054,0.66,139.1,139.08,0.1]
[1763256152227,6.91820795,139.11,139.08,0.1]
[1763256152528,7.57820795,139.11,139.08,0.1]
[1763256152727,6.91820795,139.12,139.08,14.90813614]
[1763256152927,7.57820795,139.12,139.08,14.90813614]
[1763256153752,14.7663484,139.12,139.08,14.90813614]
[1763256154134,0.66,139.12,139.08,14.90813614]
[1763256155037,16.40719974,139.14,139.09,7.61820795]
[1763256155255,6.91820795,139.12,139.08,7.28992819]
[1763256155440,10.44882769,139.13,139.08,7.28992819]
[1763256155642,7.57820795,139.12,139.08,7.28992819]
[1763256155837,6.91820795,139.13,139.08,14.20813614]
[1763256156034,7.57820795,139.13,139.09,0.7]
[1763256156755,14.76592778,139.13,139.09,7.61820795]
[1763256157336,14.76592778,139.13,139.09,0.7]
[1763256157950,14.76592778,139.13,139.1,7.1890726]
[1763256157951,7.57820795,139.13,139.1,7.1890726]
[1763256158157,0.66,139.13,139.1,7.1890726]
[1763256159232,6.91820795,139.15,139.11,7.61820795]
[1763256159439,0.66,139.16,139.13,6.91820795]
[1763256160046,7.84601764,139.16,139.13,6.91820795]
[1763256161044,7.84601764,139.16,139.12,14.80591801]
[1763256163263,0.66,139.16,139.12,14.80591801]
[1763256163451,0.66,139.16,139.12,7.88771006]
[1763256163649,0.66,139.16,139.13,6.91820795]
[1763256164056,7.8460759,139.16,139.13,6.91820795]
[1763256164252,0.66,139.16,139.13,6.91820795]
[1763256164659,7.8460235,139.16,139.13,6.91820795]
[1763256165266,7.8460235,139.16,139.12,14.80591801]
[1763256167870,14.76423145,139.16,139.12,14.80591801]
[1763256168255,6.91820795,139.14,139.1,16.40877945]
[1763256168447,6.91820795,139.14,139.1,23.3269874]
[1763256168648,0.72,139.14,139.11,0.66]
[1763256168847,0.72,139.14,139.1,23.3269874]
[1763256169272,7.90701821,139.14,139.1,23.3269874]
[1763256169459,14.10485765,139.15,139.11,7.57820795]
[1763256169773,7.63820795,139.15,139.11,7.57820795]
[1763256169962,0.72,139.15,139.11,7.57820795]
[1763256171671,7.63820795,139.15,139.12,7.1880391]
[1763256172046,7.63820795,139.15,139.08,0.76]
[1763256172047,6.91820795,139.13,139.08,0.76]
[1763256172258,6.91820795,139.13,139.09,7.1895502]
[1763256172450,25.15305562,139.15,139.09,14.10775815]
[1763256172654,0.72,139.12,139.09,14.10775815]
[1763256172857,0.72,139.12,139.09,7.1895502]
[1763256173154,0.72,139.12,139.09,7.8495502]
[1763256174575,0.72,139.12,139.09,14.76775815]
[1763256174868,14.82544857,139.14,139.09,14.76775815]
[1763256175664,0.72,139.13,139.09,14.76775815]
[1763256176047,14.82609271,139.13,139.09,14.76775815]
[1763256176970,3.51511599,139.12,139.08,10.08516809]
[1763256177364,0.72,139.11,139.08,10.08516809]
[1763256177565,3.51511599,139.12,139.08,10.08516809]
[1763256177765,3.51511599,139.12,139.09,0.66]
[1763256177965,9.98229681,139.14,139.1,7.1890726]
[1763256178146,10.70229681,139.14,139.1,9.98418859]
[1763256178452,10.70229681,139.14,139.1,10.64418859]
[1763256178652,106.57142415,139.15,139.11,3.45511599]
[1763256178854,0.72,139.14,139.11,3.45511599]
[1763256179056,3.51511599,139.14,139.1,28.61687011]
[1763256179449,2.79511599,139.14,139.1,7.1890726]
[1763256179662,2.79511599,139.12,139.08,3.55511599]
[1763256180061,3.51511599,139.12,139.08,10.74502536]
[1763256180666,0.72,139.11,139.08,10.74502536]
[1763256180977,10.70327567,139.12,139.08,10.74502536]
[1763256181779,3.51511599,139.11,139.08,0.1]
[1763256182159,0.72,139.1,139.08,0.1]
[1763256182772,0.72,139.11,139.08,7.95005856]
[1763256182981,0.72,139.11,139.08,10.74517455]
[1763256183578,0.72,139.11,139.08,28.72044058]
[1763256185083,0.72,139.11,139.08,10.74517455]
[1763256189873,2.79511599,139.13,139.09,2.79511599]
[1763256190079,26.50565372,139.16,139.09,2.79511599]
[1763256190080,7.90604593,139.16,139.11,2.79511599]
[1763256190379,0.72,139.15,139.11,3.45511599]
[1763256190582,0.72,139.16,139.12,3.45511599]
[1763256190780,110.96181009,139.17,139.14,2.79511599]
[1763256190958,104.49630816,139.17,139.15,2.79511599]
[1763256191157,8.56,139.18,139.15,2.79511599]
[1763256191374,0.72,139.18,139.15,3.45511599]
[1763256191770,7.90462602,139.19,139.15,3.45511599]
[1763256192058,0.72,139.18,139.15,10.64129383]
[1763256192275,0.72,139.19,139.16,3.45511599]
[1763256192678,0.72,139.19,139.16,2.79511599]
[1763256192982,0.72,139.19,139.11,8.56]
[1763256193167,2.79511599,139.16,139.12,2.79511599]
[1763256193576,0.72,139.16,139.12,3.50511599]
[1763256193772,0.72,139.16,139.11,15.74842174]
[1763256193773,0.72,139.15,139.11,15.74842174]
[1763256193991,2.79511599,139.13,139.09,9.98452315]
[1763256194375,0.72,139.12,139.09,9.98452315]
[1763256194786,0.72,139.12,139.09,10.69452315]
[1763256194986,0.72,139.12,139.09,14.81978385]
[1763256196197,7.18750474,139.14,139.1,6.92037669]
[1763256196368,0.72,139.15,139.12,6.92037669]
[1763256196568,39.09678733,139.17,139.13,6.92037669]
[1763256196768,45.29716402,139.17,139.13,6.92037669]
[1763256196978,0.72,139.16,139.13,4.34505084]
[1763256197368,0.72,139.16,139.13,11.53242757]
[1763256198291,0.72,139.18,139.14,5.05505084]
[1763256198479,7.90497778,139.18,139.15,4.34505084]
[1763256199372,7.90497778,139.18,139.14,5.05505084]
[1763256199588,0.72,139.17,139.14,4.34505084]
[1763256199789,0.72,139.17,139.14,11.53195329]
[1763256200305,0.72,139.17,139.14,4.34505084]
[1763256200511,0.72,139.17,139.14,11.53203774]
[1763256200813,0.72,139.17,139.14,12.24203774]
[1763256201606,7.90546185,139.17,139.14,12.24203774]
[1763256202097,7.90546185,139.17,139.14,7.8969869]
[1763256202616,7.90546185,139.17,139.14,0.71]
[1763256202921,11.53051269,139.17,139.13,4.34505084]
[1763256203209,4.34505084,139.15,139.11,9.25]
[1763256203408,0.72,139.14,139.11,8.54]
[1763256203627,4.34505084,139.13,139.08,0.81]
[1763256203785,4.34505084,139.1,139.08,0.1]
[1763256204319,22.6512,139.15,139.08,0.1]
[1763256204320,14.85387853,139.09,139.08,0.1]
[1763256204791,32.44002769,139.07,139.06,0.1]
[1763256204987,37.50507853,139.07,139.06,0.1]
[1763256206994,44.69570195,139.07,139.06,0.1]
[1763256207192,40.35065111,139.07,139.06,0.1]
[1763256207398,44.69570195,139.07,139.06,0.1]
[1763256208289,36.78507853,139.07,139.06,0.1]
[1763256208598,37.50507853,139.07,139.06,0.1]
[1763256208807,14.13387853,139.09,139.06,0.1]
[1763256209109,4.34505084,139.07,139.06,0.1]
[1763256209411,12.25518281,139.08,139.06,0.1]
[1763256209790,0.72,139.07,139.06,0.1]
[1763256210121,5.06505084,139.07,139.06,0.1]
[1763256210326,0.72,139.07,139.06,0.1]
[1763256210623,5.06505084,139.07,139.06,0.1]
[1763256211107,44.69570195,139.07,139.06,0.1]
[1763256212625,34.90687426,139.07,139.06,0.1]
[1763256213022,27.71625084,139.07,139.06,0.1]
[1763256213317,108.121359,139.08,139.06,0.1]
[1763256213485,108.841359,139.08,139.06,0.1]
[1763256213688,53.23431129,139.1,139.06,0.81]
[1763256213904,13.60505084,139.1,139.06,0.81]
[1763256214097,20.79413883,139.1,139.06,5.15505084]
[1763256214297,20.79413883,139.1,139.06,12.34597356]
[1763256214815,20.07413883,139.1,139.06,0.81]
[1763256214996,5.06505084,139.09,139.06,0.1]
[1763256215815,5.06505084,139.09,139.06,7.2910682]
[1763256216019,5.06505084,139.09,139.06,8.0010682]
[1763256216020,4.34505084,139.09,139.06,8.0010682]
[1763256216195,12.88505084,139.1,139.06,8.0010682]
[1763256216520,20.79426436,139.1,139.06,0.81]
[1763256216720,4.34505084,139.08,139.06,0.1]
[1763256218920,1.78992944,139.08,139.06,0.1]
[1763256220514,2.50992944,139.08,139.06,0.1]
[1763256221919,9.70019255,139.08,139.06,0.1]
[1763256226218,112.31630816,139.1,139.07,0.72]
[1763256226416,103.77630816,139.1,139.09,1.78992944]
[1763256226903,103.77630816,139.1,139.09,5.06742681]
[1763256227648,103.77630816,139.1,139.08,4.34742681]
[1763256227935,0.67,139.09,139.06,0.82]
[1763256228899,0.67,139.09,139.06,8.01109347]
[1763256229098,0.67,139.09,139.06,0.82]
[1763256229720,0.67,139.09,139.06,8.01112957]
[1763256230020,0.67,139.09,139.06,12.35855638]
[1763256230217,115.31287227,139.1,139.06,12.35855638]
[1763256230422,103.77630816,139.1,139.09,4.34742681]
[1763256230633,103.77630816,139.15,139.09,5.06742681]
[1763256230800,7.18568931,139.17,139.13,4.34742681]
[1763256231006,4.34742681,139.14,139.09,27.71862681]
[1763256231221,4.34742681,139.13,139.09,27.71862681]
[1763256231422,4.34742681,139.14,139.09,27.71862681]
[1763256231626,5.01742681,139.14,139.09,27.71862681]
[1763256231829,0.67,139.13,139.1,0.72]
[1763256232013,5.01742681,139.13,139.1,0.72]
[1763256233105,11.53475922,139.14,139.1,0.72]
[1763256233305,12.20475922,139.14,139.1,7.90903168]
[1763256233506,12.20475922,139.14,139.1,0.72]
[1763256234126,7.85733241,139.14,139.1,0.72]
[1763256234332,12.20475922,139.14,139.1,12.25634574]
[1763256234701,12.20475922,139.14,139.1,5.06742681]
[1763256235432,12.20475922,139.14,139.1,12.25641772]
[1763256235729,15.74659802,139.15,139.11,5.06742681]
[1763256235903,16.41659802,139.15,139.11,5.06742681]
[1763256236738,8.56,139.15,139.12,5.06742681]
[1763256237420,8.56,139.15,139.13,0.72]
[1763256237622,8.56,139.15,139.12,12.25534361]
[1763256238436,7.18632204,139.16,139.13,0.72]
[1763256238609,103.77630816,139.17,139.13,5.06742681]
[1763256238924,103.77630816,139.17,139.14,5.06742681]
[1763256239111,8.56,139.18,139.15,4.34742681]
[1763256239310,8.56,139.18,139.16,0.72]
[1763256239531,7.18472243,139.19,139.16,7.90587482]
[1763256239727,12.20156494,139.2,139.16,12.25330163]
[1763256239921,12.20156494,139.2,139.17,0.72]
[1763256240238,5.01742681,139.2,139.16,11.53330163]
[1763256240412,5.01742681,139.2,139.16,0.72]
[1763256240914,5.01742681,139.2,139.16,12.25325547]
[1763256241121,5.01742681,139.2,139.16,5.06742681]
[1763256241432,5.01742681,139.2,139.16,0.72]
[1763256241611,11.53185097,139.19,139.16,0.72]
[1763256242314,11.53185097,139.19,139.16,7.90592454]
[1763256242527,12.20185097,139.19,139.16,7.90596362]
[1763256242842,0.67,139.19,139.16,7.90596362]
[1763256243014,4.34742681,139.2,139.16,11.53339043]
[1763256243214,124.51720299,139.21,139.17,0.72]
[1763256243432,0.67,139.2,139.17,0.72]
[1763256243934,0.67,139.2,139.17,7.90542243]
[1763256244114,4.34742681,139.19,139.15,4.34742681]
[1763256244315,4.34742681,139.18,139.14,12.88742681]
[1763256244520,4.34742681,139.15,139.1,0.72]
[1763256244828,4.34742681,139.14,139.11,0.72]
[1763256245417,4.34742681,139.12,139.09,0.72]
[1763256245615,4.34742681,139.12,139.08,11.53709557]
[1763256245937,4.34742681,139.13,139.1,0.72]
[1763256246122,4.34742681,139.13,139.1,7.90892768]
[1763256248538,11.53510782,139.13,139.1,0.72]
[1763256248943,12.20510782,139.13,139.1,0.72]
[1763256249636,12.20510782,139.13,139.09,7.18944417]
[1763256249838,12.20510782,139.13,139.09,7.90944417]
[1763256252842,12.20510782,139.13,139.1,0.72]
[1763256254344,11.53510782,139.13,139.1,0.72]
[1763256254644,11.53467815,139.14,139.1,7.90887535]
[1763256254825,12.25467815,139.14,139.1,7.90887535]
[1763256255143,12.25467815,139.14,139.1,7.89887535]
[1763256255343,12.25467815,139.14,139.11,0.71]
[1763256256239,108.12373497,139.15,139.11,0.71]
[1763256256583,116.03034049,139.15,139.11,5.05742681]
[1763256256922,116.03034049,139.15,139.12,0.71]
[1763256257122,103.77630816,139.15,139.12,0.71]
[1763256257335,103.77630816,139.15,139.12,7.89776149]
[1763256257526,103.77630816,139.15,139.08,12.24739749]
[1763256257527,4.34742681,139.13,139.08,12.24739749]
[1763256257843,4.34742681,139.1,139.06,8.00078123]
[1763256258223,5.06742681,139.1,139.06,12.34820804]
[1763256258634,5.06742681,139.1,139.07,0.71]
[1763256258944,14.83295633,139.1,139.06,8.00078123]
[1763256259439,14.83295633,139.1,139.06,7.29078123]
[1763256259648,14.83295633,139.1,139.07,0.71]
[1763256260052,7.64376012,139.1,139.07,7.900598]
[1763256260842,3.51596327,139.1,139.07,7.900598]
[1763256261043,2.79596327,139.08,139.06,0.1]
[1763256261248,2.79596327,139.07,139.06,0.1]
[1763256261628,3.51596327,139.07,139.06,0.1]
[1763256262031,10.70658669,139.07,139.06,0.1]
[1763256262622,20.49541438,139.07,139.06,0.1]
[1763256264233,3.51596327,139.07,139.06,0.1]
[1763256264435,33.35778669,139.07,139.06,0.1]
[1763256266842,47.27844603,139.07,139.06,0.1]
[1763256267639,30.29899492,139.07,139.06,0.1]
[1763256268041,47.27844603,139.07,139.06,0.1]
[1763256269450,30.29899492,139.07,139.06,0.1]
[1763256269760,6.92779492,139.07,139.06,0.1]
[1763256269961,7.64779492,139.07,139.06,0.1]
[1763256270460,14.83841834,139.07,139.06,0.1]
[1763256272968,24.62724603,139.07,139.06,0.1]
[1763256273167,113.98882769,139.06,139.05,0.1]
[1763256273344,6.92779492,138.99,138.98,0.1]